bitfinex-derivatives/quotes_SOLF0:USTF0_20220104
["timestamp","ask_amount","ask_price","bid_price","bid_amount"]
[1641254402541,27.66479,170.01,169.94,5.305]
[1641254402841,61.4584,170.07,169.94,5.305]
[1641254403041,61.4584,170.07,169.89,59.3463]
[1641254403643,3.32086773,170.06,169.89,59.3463]
[1641254404548,27.66479,170.01,169.92,27.66479]
[1641254404747,27.66479,170.01,169.92,33.81779]
[1641254405150,61.4584,170.07,169.92,6.153]
[1641254405447,3.32066858,170.06,169.92,6.153]
[1641254405847,61.4584,170.07,169.92,6.153]
[1641254407547,3.32109601,170.06,169.92,6.153]
[1641254408148,27.66479,170.01,169.94,4.15144784]
[1641254414263,27.66479,170.03,169.96,4.15144784]
[1641254414456,49.71955454,170.09,169.96,8.28644784]
[1641254414656,49.71955454,170.09,169.97,64.9696]
[1641254415757,49.71955454,170.09,169.96,4.15144784]
[1641254416160,27.66479,170.02,169.96,4.15144784]
[1641254417162,27.66479,170.02,170.0,3.0]
[1641254417360,27.66479,170.02,170.0,5.898]
[1641254418663,27.66479,170.05,170.0,5.898]
[1641254418964,49.71955454,170.09,170.0,5.898]
[1641254419161,49.71955454,170.09,170.02,3.0]
[1641254419763,49.71955454,170.09,170.04,3.0]
[1641254419962,49.71955454,170.09,170.04,6.461]
[1641254420363,9.76134041,170.12,170.04,6.461]
[1641254420764,9.76134041,170.12,170.04,9.461]
[1641254420969,9.76134041,170.12,170.06,3.0]
[1641254421164,9.76134041,170.12,170.04,9.461]
[1641254421367,9.76134041,170.12,170.05,3.0]
[1641254422768,60.76243002,170.13,170.05,3.0]
[1641254422970,27.66479,170.13,170.06,3.0]
[1641254423170,27.66479,170.13,170.08,3.0]
[1641254423369,27.66479,170.13,170.08,4.929]
[1641254423669,27.66479,170.13,170.12,3.0]
[1641254423870,27.66479,170.13,170.12,5.578]
[1641254424871,3.37619,170.13,170.12,5.578]
[1641254425071,33.09764002,170.17,170.12,5.578]
[1641254425572,33.09764002,170.17,170.13,3.0]
[1641254425777,33.09764002,170.2,170.14,3.0]
[1641254425972,33.09764002,170.2,170.15,3.0]
[1641254426173,33.09764002,170.2,170.14,3.0]
[1641254426375,33.09764002,170.2,170.15,27.66479]
[1641254426574,33.09764002,170.23,170.15,30.66479]
[1641254426973,33.09764002,170.23,170.15,27.66479]
[1641254427575,42.85331605,170.23,170.16,3.0]
[1641254427775,42.85331605,170.23,170.16,5.901]
[1641254427975,42.85331605,170.23,170.17,3.0]
[1641254428175,42.85331605,170.23,170.16,5.901]
[1641254428377,42.85331605,170.23,170.16,8.901]
[1641254428577,12.40624489,170.2,170.16,8.901]
[1641254428777,12.40624489,170.2,170.17,3.0]
[1641254428976,12.40624489,170.2,170.16,5.901]
[1641254429177,12.40624489,170.2,170.16,8.901]
[1641254429777,12.40624489,170.2,170.16,5.901]
[1641254429977,12.40624489,170.2,170.16,8.901]
[1641254430182,12.40624489,170.2,170.16,5.901]
[1641254430578,12.40624489,170.21,170.16,5.901]
[1641254431578,12.40624489,170.2,170.16,8.901]
[1641254431778,12.40624489,170.2,170.17,3.0]
[1641254431980,12.40624489,170.2,170.18,3.0]
[1641254432278,12.40624489,170.2,170.19,27.66479]
[1641254432479,12.40624489,170.22,170.19,27.66479]
[1641254432978,12.40624489,170.22,170.18,3.0]
[1641254433278,32.50388491,170.26,170.18,3.0]
[1641254434080,9.75567603,170.27,170.18,3.0]
[1641254435387,9.75567603,170.27,170.16,40.71723784]
[1641254435589,9.75567603,170.27,170.16,37.71723784]
[1641254435789,16.09567603,170.27,170.16,37.71723784]
[1641254435991,3.31820918,170.26,170.16,37.71723784]
[1641254436489,27.66479,170.25,170.16,37.71723784]
[1641254436689,27.66479,170.25,170.16,33.56579]
[1641254436890,3.31820918,170.24,170.16,33.56579]
[1641254437690,9.75567603,170.24,170.16,33.56579]
[1641254438391,9.75567603,170.24,170.17,3.0]
[1641254438593,9.75567603,170.24,170.16,33.56579]
[1641254438797,12.38542267,170.24,170.16,5.901]
[1641254438992,12.38542267,170.24,170.15,3.0]
[1641254439594,12.38542267,170.24,170.16,3.0]
[1641254439794,12.38542267,170.24,170.16,9.432]
[1641254440198,12.38542267,170.24,170.17,3.0]
[1641254440396,12.38542267,170.24,170.18,3.0]
[1641254440694,12.38542267,170.24,170.17,3.0]
[1641254440895,12.38542267,170.24,170.16,9.432]
[1641254441097,12.38542267,170.24,170.16,6.432]
[1641254442098,12.38542267,170.24,170.16,9.432]
[1641254443998,12.38542267,170.24,170.17,3.0]
[1641254445898,12.38542267,170.24,170.16,13.58344784]
[1641254446599,12.38542267,170.24,170.16,10.58344784]
[1641254446799,12.38542267,170.24,170.16,13.58344784]
[1641254447802,27.66479,170.25,170.16,13.58344784]
[1641254448100,27.66479,170.25,170.16,9.432]
[1641254449300,27.66479,170.25,170.16,6.432]
[1641254449502,27.66479,170.25,170.19,3.0]
[1641254449701,27.66479,170.25,170.17,3.0]
[1641254449900,27.66479,170.25,170.16,64.8274]
[1641254449901,27.66479,170.25,170.16,67.8274]
[1641254450103,11.98412456,170.24,170.17,5.78419124]
[1641254450401,11.98412456,170.24,170.17,8.78419124]
[1641254450804,11.98412456,170.24,170.18,3.0]
[1641254451603,11.98412456,170.24,170.17,8.78419124]
[1641254451801,11.98412456,170.24,170.17,4.15144784]
[1641254452102,11.98412456,170.24,170.18,4.15144784]
[1641254452804,11.98412456,170.24,170.16,68.97884784]
[1641254453605,45.16362977,170.24,170.16,68.97884784]
[1641254454711,45.16362977,170.24,170.16,71.97884784]
[1641254455912,45.16362977,170.24,170.16,68.97884784]
[1641254457812,45.16362977,170.24,170.16,71.97884784]
[1641254458216,45.16362977,170.24,170.16,68.97884784]
[1641254458415,45.16362977,170.24,170.16,71.97884784]
[1641254458616,11.98412456,170.24,170.17,5.78417469]
[1641254460019,11.98412456,170.24,170.17,10.60817469]
[1641254460218,45.16362977,170.24,170.17,4.824]
[1641254461519,11.98412456,170.24,170.17,8.97544784]
[1641254462225,11.98412456,170.24,170.2,3.0]
[1641254462420,11.98412456,170.24,170.17,8.97544784]
[1641254462620,11.98412456,170.24,170.19,3.0]
[1641254463024,11.98412456,170.24,170.18,27.66479]
[1641254463421,33.17950521,170.26,170.19,4.15144784]
[1641254464524,27.66479,170.25,170.19,4.15144784]
[1641254464728,12.44007406,170.23,170.19,5.78424974]
[1641254465823,12.44007406,170.23,170.19,4.15144784]
[1641254466026,12.44007406,170.21,170.18,27.66479]
[1641254466924,12.44223445,170.19,170.18,27.66479]
[1641254467126,12.44223445,170.19,170.17,4.824]
[1641254467326,12.44223445,170.19,170.15,4.15144784]
[1641254467824,2.9999,170.18,170.13,27.66479]
[1641254468024,2.9999,170.18,170.11,12.44007406]
[1641254468625,2.51437591,170.17,170.07,34.77459159]
[1641254468926,12.44632383,170.14,170.07,1.59508638]
[1641254469828,12.44632383,170.13,170.07,1.59508638]
[1641254470827,12.44632383,170.11,170.07,1.59508638]
[1641254471928,27.66479,170.14,170.07,1.59508638]
[1641254472129,12.44762621,170.12,170.07,6.70808638]
[1641254472529,12.44762621,170.12,170.09,27.66479]
[1641254473030,2.51437591,170.13,170.09,27.66479]
[1641254474330,12.44762621,170.14,170.09,27.66479]
[1641254474531,12.44762621,170.14,170.1,1.59508638]
[1641254475130,12.12855743,170.16,170.1,1.59508638]
[1641254475331,2.55349501,170.16,170.1,1.59508638]
[1641254476132,76.85857285,170.17,170.1,1.59508638]
[1641254476530,12.44547285,170.17,170.1,1.59508638]
[1641254477134,2.55294426,170.17,170.1,21.0544912]
[1641254478036,12.44547285,170.18,170.1,21.0544912]
[1641254479437,12.44547285,170.18,170.1,24.0544912]
[1641254479636,12.44547285,170.18,170.1,21.0544912]
[1641254479942,12.12621076,170.2,170.1,1.59508638]
[1641254479943,12.44369683,170.17,170.1,1.59508638]
[1641254480839,12.44369683,170.16,170.13,27.66479]
[1641254481039,12.44369683,170.16,170.13,35.87279]
[1641254481239,12.44369683,170.16,170.13,32.87279]
[1641254482838,33.17950521,170.2,170.13,32.87279]
[1641254483041,12.12621076,170.21,170.13,32.87279]
[1641254483042,12.44321807,170.17,170.13,32.87279]
[1641254483843,45.30571597,170.21,170.13,32.87279]
[1641254483844,12.44321807,170.18,170.14,1.59533815]
[1641254487446,12.12621076,170.21,170.14,1.59533815]
[1641254488550,12.44375616,170.17,170.1,1.59533815]
[1641254489649,12.44375616,170.16,170.1,1.59533815]
[1641254490253,12.44375616,170.16,170.1,4.59533815]
[1641254490751,45.30571597,170.21,170.1,4.59533815]
[1641254490953,45.30571597,170.21,170.12,27.66479]
[1641254491550,45.30571597,170.21,170.13,6.98079624]
[1641254491750,45.30571597,170.21,170.13,11.22379624]
[1641254491951,45.30571597,170.21,170.13,12.81913439]
[1641254493252,12.12621076,170.22,170.14,1.59533815]
[1641254494952,15.12611076,170.22,170.14,1.59533815]
[1641254495153,12.12621076,170.22,170.14,1.59533815]
[1641254496253,2.9999,170.2,170.13,1.59533815]
[1641254496453,36.17940521,170.21,170.13,1.59533815]
[1641254496653,2.9999,170.2,170.13,1.59533815]
[1641254497054,27.66479,170.19,170.13,1.59533815]
[1641254497255,60.84429521,170.19,170.1,65.79233815]
[1641254497455,125.19989521,170.19,170.1,65.79233815]
[1641254498355,12.12621076,170.18,170.11,1.59533815]
[1641254498956,27.66479,170.12,170.07,12.44007406]
[1641254499854,30.66469,170.12,170.07,12.44007406]
[1641254500055,2.9999,170.11,170.07,12.44007406]
[1641254500257,2.9999,170.1,170.03,60.84429521]
[1641254500457,2.9999,170.09,170.03,27.66479]
[1641254501657,2.9999,170.08,170.03,27.66479]
[1641254502858,2.9999,170.07,170.03,27.66479]
[1641254503259,33.17950521,170.1,170.03,27.66479]
[1641254503559,2.9999,170.1,170.03,33.33179]
[1641254504559,9.57327154,170.11,170.03,33.33179]
[1641254505860,9.57327154,170.11,170.03,39.20550512]
[1641254506063,27.66479,170.12,170.03,39.20550512]
[1641254507164,9.57815329,170.11,170.03,39.20550512]
[1641254507662,9.57815329,170.11,170.05,6.98079624]
[1641254507862,60.84429521,170.14,170.07,5.87250785]
[1641254508062,60.7282,170.18,170.07,5.87250785]
[1641254508063,33.17950521,170.16,170.07,12.37250785]
[1641254508963,43.09049308,170.17,170.07,12.37250785]
[1641254509363,43.09049308,170.17,170.1,27.66479]
[1641254509863,9.91098787,170.17,170.1,27.66479]
[1641254511764,33.17950521,170.16,170.1,27.66479]
[1641254512663,43.09049308,170.17,170.1,27.66479]
[1641254515167,2.9999,170.16,170.05,59.6714]
[1641254515368,27.66479,170.14,170.05,59.6714]
[1641254515567,27.66479,170.14,170.03,33.33179]
[1641254516367,9.91098787,170.13,170.03,33.33179]
[1641254516569,43.09049308,170.13,170.03,36.33179]
[1641254516769,43.09049308,170.13,170.04,3.0]
[1641254516970,43.09049308,170.13,170.04,8.87354263]
[1641254517472,43.09049308,170.13,170.06,27.66479]
[1641254517673,9.91098787,170.13,170.06,27.66479]
[1641254518575,33.17950521,170.15,170.06,27.66479]
[1641254519375,33.17950521,170.14,170.06,27.66479]
[1641254520577,33.17950521,170.15,170.06,27.66479]
[1641254521379,24.17270065,170.17,170.06,27.66479]
[1641254521380,33.17950521,170.16,170.06,27.66479]
[1641254521576,33.17950521,170.16,170.09,27.66479]
[1641254521777,33.17950521,170.16,170.09,31.89779]
[1641254521980,43.09049308,170.17,170.09,31.89779]
[1641254523581,43.09049308,170.17,170.13,27.66479]
[1641254523983,43.09049308,170.17,170.09,31.89779]
[1641254524182,43.09049308,170.17,170.09,27.66479]
[1641254524483,9.91098787,170.17,170.09,27.66479]
[1641254525582,33.17950521,170.18,170.09,27.66479]
[1641254525782,33.17950521,170.17,170.09,27.66479]
[1641254527484,33.17950521,170.17,170.1,6.98079624]
[1641254527688,33.17950521,170.17,170.12,27.66479]
[1641254527887,33.17950521,170.17,170.12,33.73479]
[1641254528286,33.17950521,170.17,170.12,40.71558624]
[1641254528486,33.17950521,170.17,170.12,44.86344457]
[1641254528687,33.17950521,170.19,170.12,44.86344457]
[1641254529386,33.17950521,170.19,170.13,3.0]
[1641254529586,43.09049308,170.2,170.13,3.0]
[1641254530287,43.09049308,170.2,170.13,7.14785833]
[1641254531390,43.09049308,170.2,170.13,4.14785833]
[1641254531590,12.44286875,170.17,170.13,4.14785833]
[1641254532492,12.44286875,170.16,170.12,35.79344457]
[1641254532696,12.44286875,170.16,170.12,31.81264833]
[1641254533494,12.44286875,170.15,170.12,27.66479]
[1641254533892,12.44286875,170.15,170.11,4.14785833]
[1641254534092,6.5,170.17,170.11,4.14785833]
[1641254534295,12.44460613,170.14,170.1,4.14785833]
[1641254535093,33.17950521,170.18,170.1,4.14785833]
[1641254535293,2.9999,170.17,170.1,4.14785833]
[1641254535493,6.451,170.17,170.1,4.14785833]
[1641254535893,6.451,170.17,170.09,4.14785833]
[1641254536093,12.44559853,170.13,170.09,4.14785833]
[1641254536293,19.16559853,170.13,170.09,4.14785833]
[1641254536895,12.44559853,170.1,170.06,4.14785833]
[1641254538096,33.17950521,170.14,170.06,4.14785833]
[1641254538296,33.17950521,170.14,170.06,9.06685833]
[1641254538896,51.83271101,170.16,170.09,4.14785833]
[1641254538897,12.44567485,170.13,170.09,4.14785833]
[1641254539097,12.44567485,170.13,170.09,10.01967654]
[1641254540501,116.01,170.86,170.11,4.14785833]
[1641254540502,15.12471606,170.15,170.11,4.14785833]
[1641254540702,15.12471606,170.15,170.11,8.94085833]
[1641254541101,15.12471606,170.15,170.11,66.94085833]
[1641254541302,9.44567485,170.17,170.13,4.14785833]
[1641254541700,9.44567485,170.17,170.16,27.66479]
[1641254541900,9.44567485,170.17,170.16,34.26079]
[1641254542301,12.58623326,170.2,170.16,34.26079]
[1641254542600,33.17950521,170.23,170.16,34.26079]
[1641254543802,33.17950521,170.23,170.16,38.40864833]
[1641254544706,36.17940521,170.23,170.16,38.40864833]
[1641254544902,36.17940521,170.23,170.17,5.61717579]
[1641254545201,2.9999,170.2,170.17,5.61717579]
[1641254545901,2.67904121,170.19,170.13,5.61717579]
[1641254546802,2.67904121,170.19,170.12,10.01864237]
[1641254547808,2.67904121,170.19,170.13,27.66479]
[1641254548003,2.67904121,170.19,170.13,34.32479]
[1641254548606,2.67904121,170.21,170.14,4.14785833]
[1641254549405,2.67904121,170.21,170.14,5.64399321]
[1641254550907,35.85854642,170.21,170.14,5.64399321]
[1641254551708,35.85854642,170.21,170.13,38.47264833]
[1641254552310,35.85854642,170.21,170.14,4.14785833]
[1641254552507,2.67904121,170.21,170.14,5.64400637]
[1641254553110,36.96573847,170.22,170.14,5.64400637]
[1641254553809,36.96573847,170.22,170.2,27.66479]
[1641254554009,36.96573847,170.22,170.2,33.67579]
[1641254554418,33.17950521,170.22,170.2,33.67579]
[1641254554611,62.1113,170.25,170.2,33.67579]
[1641254554812,33.17950521,170.26,170.2,33.67579]
[1641254556614,60.84429521,170.27,170.2,37.82364833]
[1641254557316,33.17950521,170.27,170.2,37.82364833]
[1641254557514,33.17950521,170.27,170.2,33.67579]
[1641254559716,33.17950521,170.26,170.2,33.67579]
[1641254562616,36.17940521,170.26,170.2,33.67579]
[1641254562816,2.9999,170.24,170.18,4.14785833]
[1641254563216,2.9999,170.25,170.18,4.14785833]
[1641254563617,2.9999,170.24,170.17,4.14785833]
[1641254563916,36.17940521,170.25,170.17,4.14785833]
[1641254564117,36.17940521,170.25,170.17,31.81264833]
[1641254565317,2.9999,170.24,170.17,31.81264833]
[1641254565917,36.17940521,170.25,170.17,31.81264833]
[1641254566119,2.9999,170.24,170.17,31.81264833]
[1641254566318,33.17950521,170.25,170.17,31.81264833]
[1641254568720,33.17950521,170.25,170.17,4.14785833]
[1641254571927,12.4409232,170.21,170.17,4.14785833]
[1641254572325,12.4409232,170.21,170.17,31.81264833]
[1641254572625,12.4409232,170.21,170.18,4.14785833]
[1641254572826,12.4409232,170.22,170.19,6.98079624]
[1641254573025,12.4409232,170.22,170.19,6.354]
[1641254574328,126.6072,170.28,170.2,4.14785833]
[1641254574329,12.4409232,170.24,170.2,4.14785833]
[1641254574527,12.4409232,170.24,170.21,27.66479]
[1641254575227,9.61910798,170.27,170.21,27.66479]
[1641254575430,12.43901328,170.23,170.21,27.66479]
[1641254575628,12.43901328,170.23,170.2,4.14785833]
[1641254576631,4.856,170.26,170.2,4.14785833]
[1641254576831,4.856,170.26,170.19,4.14785833]
[1641254577534,12.43980561,170.22,170.18,4.14785833]
[1641254578435,33.17950521,170.26,170.18,4.14785833]
[1641254579133,12.43979661,170.22,170.18,4.14785833]
[1641254579934,33.17950521,170.26,170.18,4.14785833]
[1641254580135,12.44040966,170.21,170.18,8.31485833]
[1641254581035,33.17950521,170.25,170.18,8.31485833]
[1641254581237,33.17950521,170.25,170.19,4.14785833]
[1641254581438,12.43923713,170.23,170.19,4.14785833]
[1641254581637,12.43923713,170.23,170.19,7.14785833]
[1641254581839,12.43923713,170.23,170.19,4.14785833]
[1641254582238,12.43838807,170.24,170.2,4.14785833]
[1641254583139,9.61910798,170.27,170.2,4.14785833]
[1641254583343,12.43960727,170.23,170.19,4.14785833]
[1641254583541,12.43960727,170.23,170.19,5.833e-05]
[1641254583739,17.29160727,170.23,170.11,33.17950521]
[1641254583940,2.9999,170.21,170.11,33.17950521]
[1641254584139,2.9999,170.14,170.11,33.17950521]
[1641254584341,4.59,170.14,170.09,12.44329609]
[1641254584641,7.5899,170.14,170.09,12.44329609]
[1641254584840,27.66479,170.1,170.09,12.44329609]
[1641254585040,33.11879,170.1,170.09,12.44329609]
[1641254585440,33.11879,170.1,170.05,33.17950521]
[1641254585641,2.9999,170.08,170.05,33.17950521]
[1641254586042,2.9999,170.07,170.05,33.17950521]
[1641254586342,33.11879,170.1,169.98,33.17950521]
[1641254586541,2.9999,170.08,169.98,33.17950521]
[1641254586742,27.66479,170.03,169.98,33.17950521]
[1641254586945,33.62679,170.03,169.98,33.17950521]
[1641254587345,33.62679,170.03,169.97,6.26994807]
[1641254587944,65.4213,170.06,169.97,6.26994807]
[1641254588243,65.4213,170.06,169.95,76.0767972]
[1641254588445,65.4213,170.06,169.96,3.0]
[1641254588643,65.4213,170.06,169.95,76.0767972]
[1641254588845,27.66479,170.1,170.05,3.0]
[1641254589050,27.66479,170.1,170.07,5.87250785]
[1641254589250,33.17950521,170.12,170.07,5.87250785]
[1641254589850,62.924,170.17,170.07,5.87250785]
[1641254590050,2.9999,170.16,170.07,5.87250785]
[1641254590251,2.9999,170.15,170.05,6.592]
[1641254590651,2.9999,170.15,170.04,6.26994807]
[1641254590850,93.58869,170.17,170.08,27.66479]
[1641254591052,2.9999,170.15,170.08,34.06779]
[1641254591452,2.9999,170.15,170.08,6.403]
[1641254592151,2.9999,170.14,170.02,60.5483]
[1641254592353,2.9999,170.13,170.0,33.17950521]
[1641254592550,2.9999,170.14,170.0,33.17950521]
[1641254592750,2.9999,170.14,170.03,6.96587161]
[1641254592951,27.66479,170.12,170.03,6.96587161]
[1641254593352,2.5745298,170.11,170.03,6.96587161]
[1641254593554,2.5745298,170.11,170.02,8.54073544]
[1641254593955,2.5745298,170.11,170.03,5.87371512]
[1641254594156,12.90085423,170.11,170.03,12.25471512]
[1641254594754,12.90085423,170.11,170.06,5.87268029]
[1641254594957,33.17950521,170.16,170.1,33.53609108]
[1641254595156,33.17950521,170.16,170.1,27.66479]
[1641254596157,2.9999,170.18,170.1,27.66479]
[1641254596558,2.9999,170.18,170.05,5.8730252]
[1641254596854,27.66479,170.17,170.05,33.5378152]
[1641254597056,2.9999,170.14,170.05,27.66479]
[1641254597257,8.1139,170.14,170.05,27.66479]
[1641254597457,5.114,170.14,170.03,33.17950521]
[1641254597657,2.9999,170.13,170.03,33.17950521]
[1641254597862,2.9999,170.13,170.02,62.2442]
[1641254598057,65.1949,170.13,170.02,62.2442]
[1641254598763,33.17950521,170.12,170.02,62.2442]
[1641254598959,33.17950521,170.12,170.02,89.90899]
[1641254599160,2.9999,170.04,170.02,27.66479]
[1641254599359,2.9999,170.08,169.97,33.17950521]
[1641254599559,2.9999,170.08,169.97,38.55850521]
[1641254600165,2.9999,170.09,169.97,5.379]
[1641254600359,36.17940521,170.09,169.97,5.379]
[1641254600560,2.9999,170.08,169.97,5.379]
[1641254600960,2.9999,170.08,170.0,27.66479]
[1641254601366,2.9999,170.07,169.98,60.5211]
[1641254601559,2.9999,170.07,169.97,27.66479]
[1641254602162,2.9999,170.08,169.97,27.66479]
[1641254602360,2.9999,170.08,169.97,34.06379]
[1641254602660,2.9999,170.09,169.97,34.06379]
[1641254603062,2.9999,170.08,170.0,27.66479]
[1641254603463,2.9999,170.09,170.0,27.66479]
[1641254603763,2.9999,170.1,170.0,27.66479]
[1641254606567,2.9999,170.09,170.0,27.66479]
[1641254607367,2.9999,170.08,169.98,59.0626]
[1641254607572,2.9999,170.07,169.98,59.0626]
[1641254607768,2.9999,170.08,169.98,59.0626]
[1641254607967,2.9999,170.09,169.98,64.8096]
[1641254608368,64.9601,170.12,169.98,64.8096]
[1641254608574,2.9999,170.1,169.98,64.8096]
[1641254609069,2.9999,170.08,169.98,5.747]
[1641254609270,2.9999,170.07,169.98,5.747]
[1641254609472,2.9999,170.07,169.96,27.66479]
[1641254609871,2.9999,170.08,169.96,27.66479]
[1641254610071,2.9999,170.07,169.96,27.66479]
[1641254610270,33.17950521,170.11,169.96,27.66479]
[1641254610471,2.9999,170.08,169.96,27.66479]
[1641254610672,36.17940521,170.09,169.96,27.66479]
[1641254611073,2.9999,170.08,169.96,27.66479]
[1641254611277,27.66479,170.05,169.96,27.66479]
[1641254612774,2.9999,170.06,169.96,27.66479]
[1641254612975,2.9999,170.06,169.96,31.99579]
[1641254614078,64.7677,170.07,169.96,31.99579]
[1641254615177,64.7677,170.07,169.97,6.57416601]
[1641254616079,15.44577131,170.06,169.97,19.02003732]
[1641254616880,15.44577131,170.06,169.97,12.44587131]
[1641254617081,12.44587131,170.05,169.96,44.44166131]
[1641254617279,12.44587131,170.05,169.99,27.66479]
[1641254618181,12.44587131,170.07,169.99,27.66479]
[1641254618781,12.44587131,170.07,170.01,3.0]
[1641254618981,12.44587131,170.08,170.03,3.0]
[1641254619383,12.44587131,170.08,170.06,27.66479]
[1641254620084,12.44587131,170.11,170.06,32.19679]
[1641254621085,12.44587131,170.12,170.06,32.19679]
[1641254622085,12.44587131,170.12,170.06,27.66479]
[1641254624089,12.44587131,170.11,170.06,27.66479]
[1641254624790,12.44587131,170.1,170.06,27.66479]
[1641254624991,12.44587131,170.1,170.02,12.44587131]
[1641254625193,2.9999,170.06,170.02,12.44587131]
[1641254625491,6.51,170.06,170.02,12.44587131]
[1641254625692,18.95587131,170.06,169.99,27.66479]
[1641254626599,12.44587131,170.06,169.99,27.66479]
[1641254627299,12.44587131,170.07,169.99,27.66479]
[1641254628198,12.44587131,170.07,169.99,40.11066131]
[1641254629298,12.44587131,170.07,170.03,27.66479]
[1641254629899,12.44587131,170.07,170.03,32.88779]
[1641254630300,73.74327131,170.09,170.03,32.88779]
[1641254630501,12.44587131,170.09,170.03,5.223]
[1641254631103,12.44587131,170.08,170.0,59.138]
[1641254632006,12.44587131,170.08,170.0,71.58387131]
[1641254632905,73.59277131,170.11,170.0,71.58387131]
[1641254633306,73.59277131,170.11,170.02,27.66479]
[1641254633807,12.44587131,170.1,170.02,27.66479]
[1641254634708,12.44587131,170.09,170.02,27.66479]
[1641254635307,12.44587131,170.09,170.03,1.42950089]
[1641254636910,12.44587131,170.08,170.03,1.42950089]
[1641254637108,2.9999,170.07,170.03,1.42950089]
[1641254637311,27.66479,170.06,170.0,12.44587131]
[1641254637510,30.66469,170.06,170.0,12.44587131]
[1641254637708,12.44587131,170.05,169.99,27.66479]
[1641254638609,12.44587131,170.03,169.99,27.66479]
[1641254638810,18.13587131,170.03,169.99,27.66479]
[1641254639812,12.44587131,170.02,169.99,27.66479]
[1641254641114,12.44587131,170.03,169.99,27.66479]
[1641254642518,12.44587131,170.02,169.99,27.66479]
[1641254643317,19.23587131,170.02,169.94,40.11066131]
[1641254643518,22.23577131,170.02,169.94,12.44587131]
[1641254643719,2.9999,170.01,169.94,12.44587131]
[1641254644118,22.23577131,170.02,169.94,12.44587131]
[1641254644318,2.9999,170.01,169.94,12.44587131]
[1641254644720,2.9999,170.0,169.94,12.44587131]
[1641254645019,2.9999,170.01,169.94,12.44587131]
[1641254645420,27.66479,169.96,169.95,4.15337864]
[1641254646821,12.44587131,169.99,169.95,4.15337864]
[1641254647023,12.44587131,169.99,169.95,9.85837864]
[1641254647826,40.11066131,170.0,169.96,4.15337864]
[1641254649524,12.44587131,169.99,169.96,4.15337864]
[1641254650425,40.12440436,170.0,169.96,4.15337864]
[1641254651324,40.12440436,170.0,169.96,9.13837864]
[1641254652125,27.66479,170.0,169.96,9.13837864]
[1641254653227,27.66479,170.0,169.99,4.15337864]
[1641254653725,12.4553393,170.03,169.99,4.15337864]
[1641254654626,12.4553393,170.03,169.99,7.15337864]
[1641254654827,12.4553393,170.03,170.02,6.64280778]
[1641254655027,12.4553393,170.03,170.02,12.91080778]
[1641254655231,12.4553393,170.03,170.02,6.268]
[1641254656028,12.4553393,170.06,170.02,4.15337864]
[1641254657228,12.4553393,170.06,170.03,4.15337864]
[1641254658231,2.9999,170.05,169.99,12.44587131]
[1641254658431,2.9999,170.05,169.99,4.15186122]
[1641254659030,36.17940521,170.06,169.99,4.15186122]
[1641254659230,33.17950521,170.06,169.99,4.15186122]
[1641254659729,27.66479,170.05,169.99,4.15186122]
[1641254659931,27.66479,170.05,169.95,12.44587131]
[1641254660132,12.4568902,170.0,169.94,3.0]
[1641254660631,12.4568902,170.0,169.93,27.66479]
[1641254660833,33.17950521,170.04,169.95,12.44587131]
[1641254660834,12.4568902,170.03,169.95,12.44587131]
[1641254661636,12.4568902,169.99,169.92,74.87967131]
[1641254661837,12.4568902,169.99,169.92,12.44587131]
[1641254662635,12.4568902,169.99,169.91,18.89157346]
[1641254663737,12.4568902,169.98,169.91,18.89157346]
[1641254663936,27.66479,169.97,169.91,18.89157346]
[1641254664737,27.66479,169.97,169.91,12.44587131]
[1641254664937,27.66479,169.97,169.9,40.11066131]
[1641254665138,27.66479,169.97,169.9,12.44587131]
[1641254666338,27.66479,169.97,169.9,18.8916105]
[1641254667538,12.4568902,169.98,169.92,3.0]
[1641254667739,12.4568902,169.98,169.91,3.0]
[1641254667940,12.4568902,169.98,169.93,27.66479]
[1641254668644,45.63639541,170.02,169.94,12.44587131]
[1641254668848,12.4568902,170.02,169.94,25.5066105]
[1641254669643,12.4568902,170.02,169.95,12.44587131]
[1641254670748,12.4568902,170.02,169.94,18.8916105]
[1641254671548,12.4568902,169.99,169.91,12.44587131]
[1641254672446,12.4568902,169.98,169.9,21.8916105]
[1641254673049,12.4568902,169.98,169.9,18.8916105]
[1641254673649,12.4568902,170.0,169.92,12.44587131]